bitfinex-derivatives/quotes_SOLF0:USTF0_20220110
["timestamp","ask_amount","ask_price","bid_price","bid_amount"]
[1641856560671,4.17553846,135.65,135.57,0.83510769]
[1641856562472,11.66953846,135.65,135.57,0.83510769]
[1641856562672,7.494,135.65,135.56,27.66479]
[1641856563072,4.17504185,135.64,135.58,0.83500837]
[1641856563772,8.17504185,135.64,135.58,0.83500837]
[1641856564073,27.66479,135.6,135.58,0.83500837]
[1641856565276,1.843,135.62,135.58,0.83500837]
[1641856565475,11.25273832,135.64,135.58,0.83500837]
[1641856566079,27.66479,135.63,135.58,0.83500837]
[1641856566678,33.5634425,135.63,135.52,118.66479]
[1641856566978,5.89947494,135.61,135.52,118.66479]
[1641856567277,5.89947494,135.61,135.59,0.83515644]
[1641856567482,5.90032426,135.59,135.53,2.50197393]
[1641856567680,1.844,135.58,135.53,2.50197393]
[1641856568077,27.66479,135.56,135.47,30.16676393]
[1641856568278,34.37379,135.56,135.47,30.16676393]
[1641856568878,107.14639,135.56,135.47,30.16676393]
[1641856569179,107.14639,135.56,135.48,2.50197393]
[1641856569678,34.37379,135.56,135.48,2.50197393]
[1641856570080,34.37379,135.56,135.5,4.0]
[1641856570282,27.66479,135.58,135.5,12.22]
[1641856570581,1.844,135.61,135.5,12.22]
[1641856570782,69.1834,135.61,135.51,2.50197393]
[1641856571082,4.17647095,135.6,135.53,0.83529419]
[1641856571285,4.17647095,135.6,135.53,4.83529419]
[1641856571683,4.17647095,135.6,135.54,4.0]
[1641856571883,4.17647095,135.6,135.54,12.432]
[1641856572185,4.17647095,135.6,135.55,27.66479]
[1641856572584,4.17647095,135.6,135.55,30.1697546]
[1641856573282,4.17647095,135.6,135.55,34.1697546]
[1641856573483,27.66479,135.66,135.59,4.0]
[1641856573690,27.66479,135.66,135.59,10.537]
[1641856574089,27.66479,135.66,135.61,27.66479]
[1641856574589,27.66479,135.66,135.6,2.5049646]
[1641856575390,27.66479,135.66,135.56,6.5049646]
[1641856576090,27.66479,135.66,135.57,2.5049646]
[1641856577291,31.66479,135.66,135.57,2.5049646]
[1641856577492,73.28823367,135.65,135.57,2.5049646]
[1641856577693,79.04123367,135.65,135.56,12.65121994]
[1641856578092,5.89845824,135.63,135.56,12.65121994]
[1641856578294,33.56324824,135.63,135.56,12.65121994]
[1641856578493,1.843,135.62,135.56,12.65121994]
[1641856578693,8.786,135.62,135.56,2.5049646]
[1641856578894,8.786,135.62,135.61,0.83509279]
[1641856579096,8.786,135.62,135.56,2.5049646]
[1641856579296,5.89940759,135.61,135.56,2.5049646]
[1641856579494,1.843,135.6,135.52,10.14625534]
[1641856579694,5.90072804,135.58,135.52,10.14625534]
[1641856579893,1.844,135.57,135.52,10.14625534]
[1641856580296,27.66479,135.55,135.52,10.14625534]
[1641856580497,35.83079,135.55,135.52,2.51006237]
[1641856583097,35.83079,135.55,135.46,43.90412318]
[1641856583299,107.46609,135.55,135.46,2.51006237]
[1641856583998,107.46609,135.55,135.53,0.83553702]
[1641856586703,35.83079,135.55,135.53,0.83553702]
[1641856586902,27.66479,135.55,135.53,0.83553702]
[1641856587503,27.66479,135.55,135.48,15.57080109]
[1641856587904,27.66479,135.57,135.48,15.57080109]
[1641856588103,27.66479,135.57,135.54,0.83555695]
[1641856590305,59.32958,135.57,135.54,0.83555695]
[1641856590504,61.17358,135.57,135.54,0.83555695]
[1641856590704,5.90186754,135.56,135.54,0.83555695]
[1641856591707,55.32958,135.57,135.49,91.83541743]
[1641856591904,1.844,135.59,135.49,113.71321852]
[1641856592105,1.844,135.6,135.49,113.71321852]
[1641856592306,4.17718049,135.56,135.5,27.66479]
[1641856592904,4.17718049,135.56,135.51,15.57080109]
[1641856593506,4.17718049,135.56,135.51,2.50926325]
[1641856594310,31.84197049,135.56,135.51,2.50926325]
[1641856594708,37.74346993,135.56,135.51,2.50926325]
[1641856595408,37.74346993,135.56,135.55,0.83546795]
[1641856595809,33.56628944,135.56,135.55,0.83546795]
[1641856596813,33.5664295,135.56,135.55,0.83546795]
[1641856597209,33.5664295,135.56,135.49,106.57080109]
[1641856597412,4.0,135.53,135.49,106.57080109]
[1641856597611,5.90332858,135.52,135.49,15.57080109]
[1641856598011,5.90379481,135.51,135.49,15.57080109]
[1641856598411,5.9025117,135.54,135.46,15.57080109]
[1641856598810,5.9025117,135.54,135.52,0.83551721]
[1641856599010,5.9025117,135.54,135.46,15.57080109]
[1641856599414,5.9025117,135.54,135.45,15.57080109]
[1641856600215,5.9025117,135.54,135.46,15.57080109]
[1641856600414,27.66479,135.53,135.46,15.57080109]
[1641856600613,33.56768453,135.53,135.46,15.57080109]
[1641856600814,40.18268453,135.53,135.46,15.57080109]
[1641856601316,40.18268453,135.53,135.45,15.57080109]
[1641856601921,40.18268453,135.53,135.46,15.57080109]
[1641856603419,33.56768453,135.53,135.46,15.57080109]
[1641856603718,33.56768453,135.53,135.46,16.40647968]
[1641856604422,33.56768453,135.53,135.46,44.07126968]
[1641856604720,33.56768453,135.53,135.47,18.08102765]
[1641856605120,21.47035289,135.61,135.51,4.0]
[1641856605320,21.47035289,135.61,135.51,103.11]
[1641856605521,21.47035289,135.61,135.51,99.11]
[1641856605721,25.47035289,135.61,135.51,99.11]
[1641856605922,5.90054427,135.59,135.51,99.11]
[1641856606121,5.90054427,135.59,135.52,28.23673982]
[1641856606522,5.90054427,135.59,135.52,55.90152982]
[1641856606924,5.90054427,135.59,135.52,30.17501656]
[1641856607724,5.90054427,135.59,135.53,2.51022656]
[1641856609025,11.74454427,135.59,135.53,2.51022656]
[1641856609227,7.74454427,135.59,135.53,2.51022656]
[1641856609428,11.74454427,135.59,135.53,2.51022656]
[1641856609628,7.74454427,135.59,135.53,2.51022656]
[1641856610127,11.74454427,135.59,135.53,2.51022656]
[1641856610930,4.0,135.54,135.51,15.57080109]
[1641856611129,6.349,135.54,135.48,41.39406081]
[1641856611332,9.90324029,135.52,135.48,41.39406081]
[1641856611529,5.90324029,135.52,135.48,41.39406081]
[1641856612128,9.90324029,135.52,135.48,41.39406081]
[1641856612328,5.90324029,135.52,135.48,41.39406081]
[1641856612628,5.90324029,135.52,135.43,69.05885081]
[1641856613331,5.90324029,135.52,135.44,4.0]
[1641856613629,27.66479,135.53,135.46,4.0]
[1641856614530,27.66479,135.53,135.48,27.66479]
[1641856616531,27.66479,135.53,135.46,51.5684936]
[1641856616733,4.17897573,135.51,135.46,51.5684936]
[1641856616931,4.17897573,135.51,135.45,66.91754802]
[1641856617731,4.17897573,135.51,135.46,41.39406081]
[1641856618632,4.17897573,135.51,135.49,27.66479]
[1641856620334,6.164,135.56,135.49,27.66479]
[1641856620733,6.164,135.56,135.46,51.5684936]
[1641856620734,5.90229677,135.55,135.46,51.5684936]
[1641856620933,1.844,135.54,135.46,51.5684936]
[1641856621334,1.844,135.54,135.44,10.17443279]
[1641856621534,74.96019677,135.55,135.44,10.17443279]
[1641856622141,7.74729677,135.55,135.43,83.2332836]
[1641856622339,7.74729677,135.55,135.47,4.0]
[1641856622541,1.844,135.57,135.47,31.66479]
[1641856622742,1.844,135.57,135.48,4.0]
[1641856622941,1.844,135.58,135.5,4.0]
[1641856623341,7.08037911,135.59,135.49,4.0]
[1641856623342,8.92437911,135.59,135.49,4.0]
[1641856623745,8.92437911,135.59,135.49,10.17443279]
[1641856623944,9.9015692,135.56,135.49,10.17443279]
[1641856624144,1.844,135.55,135.49,10.17443279]
[1641856624443,4.179043,135.53,135.49,10.17443279]
[1641856624645,4.179043,135.53,135.48,41.39406081]
[1641856624646,4.179043,135.53,135.48,10.17443279]
[1641856626848,4.179043,135.53,135.48,14.17443279]
[1641856627250,4.179043,135.53,135.51,0.83544629]
[1641856627447,4.179043,135.53,135.51,10.19744629]
[1641856628548,7.08036225,135.59,135.51,10.19744629]
[1641856629551,7.08036225,135.59,135.51,20.37187908]
[1641856630950,7.08036225,135.59,135.51,19.53643279]
[1641856631152,7.08036225,135.59,135.52,0.8354972]
[1641856632853,4.17729489,135.58,135.52,0.8354972]
[1641856633252,13.83929489,135.58,135.52,0.8354972]
[1641856633452,9.83929489,135.58,135.52,0.8354972]
[1641856633853,4.0,135.55,135.52,0.8354972]
[1641856634052,5.844,135.54,135.51,10.17443279]
[1641856634253,9.90315297,135.53,135.48,10.17443279]
[1641856634453,5.844,135.52,135.48,10.17443279]
[1641856634754,5.90399245,135.51,135.48,10.17443279]
[1641856634954,1.845,135.5,135.42,69.05885081]
[1641856635155,5.845,135.5,135.42,69.05885081]
[1641856635355,5.90477368,135.49,135.42,69.05885081]
[1641856635555,14.33277368,135.49,135.42,69.05885081]
[1641856635955,14.33277368,135.49,135.42,37.84082768]
[1641856636356,18.33277368,135.49,135.42,37.84082768]
[1641856636557,4.0,135.48,135.42,37.84082768]
[1641856636761,5.845,135.48,135.42,37.84082768]
[1641856636959,1.845,135.48,135.42,37.84082768]
[1641856638162,5.845,135.48,135.42,37.84082768]
[1641856639663,4.0,135.48,135.42,37.84082768]
[1641856641065,4.18011251,135.47,135.42,37.84082768]
[1641856641664,4.18011251,135.47,135.42,53.43258063]
[1641856644767,5.90481111,135.49,135.42,53.43258063]
[1641856646671,7.08435409,135.51,135.42,59.15858063]
[1641856646870,27.66479,135.52,135.42,59.15858063]
[1641856647270,27.66479,135.52,135.43,25.76779063]
[1641856647872,37.56838797,135.52,135.43,25.76779063]
[1641856648575,4.179756,135.48,135.43,25.76779063]
[1641856649073,4.179756,135.48,135.43,15.59175295]
[1641856649875,4.179756,135.48,135.43,16.42770815]
[1641856650675,4.179756,135.48,135.45,27.66479]
[1641856651676,4.179756,135.48,135.46,2.51036455]
[1641856652377,27.66479,135.52,135.46,2.51036455]
[1641856652577,4.17929012,135.51,135.46,2.51036455]
[1641856653778,4.17929012,135.51,135.46,18.1021175]
[1641856654378,4.17929012,135.51,135.46,2.51036455]
[1641856656378,27.66479,135.52,135.46,2.51036455]
[1641856656578,27.66479,135.52,135.46,28.26033315]
[1641856657679,27.66479,135.52,135.47,0.835735]
[1641856658480,27.66479,135.52,135.48,2.51036455]
[1641856658681,4.0,135.51,135.47,0.835735]
[1641856658881,5.90406773,135.5,135.47,3.5e-05]
[1641856659081,1.845,135.49,135.47,3.5e-05]
[1641856659280,5.9051024,135.48,135.47,3.5e-05]
[1641856659482,9.9051024,135.48,135.47,3.5e-05]
[1641856661882,5.9051024,135.48,135.42,25.76179854]
[1641856662985,5.9051024,135.48,135.43,15.59175295]
[1641856663384,80.4037,135.49,135.43,15.59175295]
[1641856663584,4.17867699,135.51,135.43,15.59175295]
[1641856664686,10.08243977,135.51,135.45,15.59175295]
[1641856664887,5.90376278,135.51,135.45,15.59175295]
[1641856665086,4.1799324,135.48,135.45,15.59175295]
[1641856665286,15.59175295,135.55,135.47,4.0]
[1641856665487,15.59175295,135.55,135.47,10.588]
[1641856666089,24.51564283,135.6,135.49,15.59175295]
[1641856666290,26.67164283,135.6,135.49,15.59175295]
[1641856666690,54.33643283,135.6,135.51,27.66479]
[1641856666890,1.844,135.59,135.51,36.33179]
[1641856667491,5.844,135.59,135.51,36.33179]
[1641856667892,9.90089285,135.58,135.51,36.33179]
[1641856668089,1.844,135.57,135.51,36.33179]
[1641856668892,1.844,135.57,135.51,8.667]
[1641856668893,5.844,135.57,135.51,8.667]
[1641856669096,5.844,135.57,135.49,27.66479]
[1641856669696,1.844,135.57,135.49,27.66479]
[1641856669997,5.844,135.57,135.49,27.66479]
[1641856670202,1.844,135.57,135.49,27.66479]
[1641856670398,9.90089285,135.58,135.49,27.66479]
[1641856670598,1.844,135.57,135.49,27.66479]
[1641856671602,5.844,135.57,135.49,27.66479]
[1641856672303,4.0,135.55,135.49,27.66479]
[1641856672503,4.0,135.54,135.48,15.59175295]
[1641856672705,37.56752794,135.54,135.48,15.59175295]
[1641856672904,1.844,135.53,135.48,15.59175295]
[1641856673305,1.844,135.53,135.46,91.0]
[1641856673505,5.90273794,135.54,135.46,91.0]
[1641856674107,5.90273794,135.54,135.47,15.59175295]
[1641856674306,5.90273794,135.54,135.47,25.76408898]
[1641856674506,9.90273794,135.54,135.47,25.76408898]
[1641856674706,1.844,135.53,135.47,25.76408898]
[1641856674906,5.90273794,135.54,135.47,25.76408898]
[1641856675107,5.90233294,135.54,135.46,91.0]
[1641856676008,14.90550021,135.56,135.46,106.59175295]
[1641856676209,5.90150021,135.56,135.46,106.59175295]
[1641856676610,5.90150021,135.56,135.49,0.83581615]
[1641856676809,5.90150021,135.56,135.49,28.50060615]
[1641856677910,4.17904201,135.53,135.49,28.50060615]
[1641856679311,4.17904201,135.53,135.49,0.83581615]
[1641856679511,5.90343358,135.52,135.49,0.83581615]
[1641856680313,5.90343358,135.52,135.5,0.83569873]
[1641856680514,4.17904201,135.53,135.5,9.64769873]
[1641856680912,4.17904201,135.53,135.51,27.66479]
[1641856681913,5.90162282,135.56,135.51,27.66479]
[1641856682112,15.59175295,135.58,135.51,27.66479]
[1641856682113,4.17847632,135.52,135.51,27.66479]
[1641856683115,4.17847632,135.52,135.5,0.83569873]
[1641856684216,4.17847632,135.52,135.45,27.66479]
[1641856684415,4.17847632,135.52,135.45,31.66479]
[1641856684615,4.17847632,135.52,135.47,4.0]
[1641856684815,4.17847632,135.52,135.51,0.83572654]
[1641856685817,4.0,135.52,135.45,15.59175295]
[1641856686017,9.90369153,135.51,135.45,15.59175295]
[1641856686216,11.74869153,135.51,135.45,15.59175295]
[1641856686416,4.0,135.5,135.45,15.59175295]
[1641856686618,5.90496979,135.48,135.45,15.59175295]
[1641856686819,44.77875979,135.48,135.45,15.59175295]
[1641856687018,4.0,135.47,135.45,5.295e-05]
[1641856687218,4.0,135.47,135.41,27.66479]
[1641856687918,44.77907873,135.48,135.41,27.66479]
[1641856688519,44.77907873,135.48,135.39,27.66479]
[1641856688919,44.77907873,135.48,135.4,10.1665468]
[1641856689119,40.77907873,135.48,135.4,10.1665468]
[1641856689420,109.69157873,135.48,135.4,10.1665468]
[1641856689720,109.69157873,135.48,135.39,27.66479]
[1641856692723,40.77907873,135.48,135.4,4.0]
[1641856692922,33.68967295,135.5,135.42,4.0]
[1641856693122,4.17988295,135.5,135.42,4.0]
[1641856693322,4.17988295,135.5,135.43,4.0]
[1641856693522,4.17988295,135.5,135.43,12.548]
[1641856693922,1.845,135.54,135.43,12.548]
[1641856694122,4.18052267,135.47,135.43,12.548]
[1641856694323,4.18052267,135.47,135.44,4.0]
[1641856694525,5.90190592,135.55,135.44,4.0]
[1641856694725,5.90190592,135.55,135.44,70.7533]
[1641856694924,33.56669592,135.55,135.47,27.66479]
[1641856695926,33.56669592,135.55,135.47,33.41979]
[1641856696226,1.845,135.56,135.47,33.41979]
[1641856696426,1.844,135.61,135.49,4.0]
[1641856696827,1.844,135.61,135.54,27.66479]
[1641856697026,4.0,135.6,135.52,27.66479]
[1641856697229,5.844,135.59,135.47,9.755]
[1641856697427,5.844,135.59,135.48,67.7701]
[1641856697630,1.844,135.59,135.48,67.7701]
[1641856698730,5.844,135.59,135.48,67.7701]
[1641856698929,27.66479,135.56,135.48,95.43489]
[1641856699529,4.17867533,135.54,135.49,4.0]
[1641856699732,4.17867533,135.54,135.49,11.37776317]
[1641856700631,4.17867533,135.54,135.5,2.50776317]
[1641856701433,4.17867533,135.54,135.49,2.50776317]
[1641856702630,4.17867533,135.54,135.49,6.50776317]
[1641856702832,4.17867533,135.54,135.5,4.0]
[1641856703030,4.17867533,135.54,135.51,27.66479]
[1641856703232,26.91256263,135.6,135.51,27.66479]
[1641856703432,25.06856263,135.6,135.51,27.66479]
[1641856703731,4.17806502,135.53,135.51,31.66479]
[1641856703932,25.06856263,135.6,135.52,4.0]
[1641856704132,25.06856263,135.6,135.54,4.0]
[1641856704331,25.06856263,135.6,135.54,6.511]
[1641856704735,41.39406081,135.66,135.54,6.511]
[1641856704935,69.05885081,135.66,135.57,27.66479]
[1641856705135,73.05885081,135.66,135.57,27.66479]
[1641856705537,1.843,135.65,135.57,27.66479]
[1641856707640,4.17740892,135.59,135.58,4.0]
[1641856707839,8.49154829,135.67,135.58,10.68]
[1641856708040,8.49154829,135.67,135.6,4.0]
[1641856708240,7.07503167,135.69,135.59,4.0]
[1641856709041,7.07503167,135.69,135.63,27.66479]
[1641856709241,7.07503167,135.69,135.63,33.50979]
[1641856709743,29.50779,135.71,135.63,33.50979]
[1641856709946,27.66479,135.71,135.63,33.50979]
[1641856712244,27.66479,135.71,135.63,27.66479]
[1641856713051,4.17506179,135.68,135.63,27.66479]
[1641856714453,4.17506179,135.68,135.6,1.44879035]
[1641856714653,9.89740004,135.66,135.6,1.44879035]
[1641856714853,13.73140004,135.66,135.6,1.44879035]
[1641856715055,7.834,135.66,135.6,1.44879035]
[1641856715953,4.17506179,135.68,135.6,1.44879035]
[1641856716155,4.17506179,135.68,135.6,7.46279035]
[1641856716854,1.843,135.69,135.64,1.49007876]
[1641856717055,7.7376173,135.7,135.64,1.49007876]
[1641856717254,4.17436194,135.67,135.64,1.49007876]
[1641856719054,4.17436194,135.67,135.64,29.15486876]
[1641856720657,4.17436194,135.67,135.64,27.66479]
[1641856721056,27.66479,135.71,135.64,27.66479]
[1641856721255,4.17474988,135.69,135.64,27.66479]
[1641856722058,4.17474988,135.69,135.64,31.66479]
[1641856722458,4.17474988,135.69,135.65,4.0]
[1641856722662,4.0,135.76,135.65,4.0]
[1641856722860,5.8925091,135.77,135.65,4.0]
[1641856723058,5.8925091,135.77,135.69,27.66479]
[1641856723258,5.8925091,135.77,135.69,34.68079]
[1641856723861,4.0,135.76,135.69,34.68079]
[1641856724861,4.0,135.75,135.69,34.68079]
[1641856725061,4.0,135.73,135.69,27.66479]
[1641856725263,10.659,135.73,135.64,27.66479]
[1641856725463,4.17419354,135.68,135.65,1.48991778]
[1641856725663,10.74319354,135.68,135.65,1.48991778]
[1641856726065,10.74319354,135.68,135.65,5.48991778]
[1641856726364,4.17419354,135.68,135.65,5.48991778]
[1641856726563,7.07224898,135.75,135.67,4.0]
[1641856726765,4.0,135.76,135.66,8.175]
[1641856726965,4.0,135.76,135.66,12.175]
[1641856727264,4.0,135.76,135.7,27.66479]
[1641856727966,9.89284439,135.76,135.7,27.66479]
[1641856728764,9.89284439,135.76,135.66,8.175]
[1641856728964,9.89284439,135.76,135.65,1.48991778]
[1641856729168,27.66479,135.75,135.65,1.48991778]
[1641856729563,27.66479,135.75,135.64,59.32958]
[1641856729765,4.17433251,135.67,135.66,2.32500246]
[1641856731767,10.49033251,135.67,135.66,2.32500246]
[1641856731969,10.49033251,135.67,135.66,1e-08]
[1641856733170,4.17433251,135.67,135.66,1e-08]
[1641856733770,15.4513818,135.73,135.66,2.36612921]
[1641856733969,83.4328818,135.73,135.66,2.36612921]
[1641856734670,67.9815,135.73,135.66,2.36612921]
[1641856734872,50.18810997,135.75,135.66,6.36612921]
[1641856735071,43.1161718,135.75,135.7,27.66479]
[1641856735272,43.1161718,135.75,135.7,33.86579]
[1641856735471,2.68312284,135.74,135.7,33.86579]
[1641856735674,2.68312284,135.74,135.7,6.201]
[1641856736275,2.68312284,135.74,135.68,27.66479]
[1641856737376,2.68312284,135.74,135.7,4.0]
[1641856737574,2.68312284,135.74,135.7,9.818]
[1641856737775,2.68312284,135.74,135.72,4.0]
[1641856737974,41.39406081,135.78,135.72,4.0]
[1641856738177,2.68298837,135.78,135.71,4.0]
[1641856739179,6.68298837,135.78,135.7,5.818]
[1641856739379,6.68298837,135.78,135.68,57.17058]
[1641856739578,78.12878837,135.78,135.68,55.32958]
[1641856739980,74.12878837,135.78,135.68,55.32958]
[1641856740381,71.4458,135.78,135.68,55.32958]
[1641856740581,4.0,135.75,135.68,55.32958]
[1641856740781,9.816,135.75,135.67,3.24295136]
[1641856740980,5.816,135.75,135.67,3.24295136]
[1641856741381,33.48079,135.75,135.67,3.24295136]
[1641856741780,33.48079,135.75,135.67,7.24295136]
[1641856741981,5.816,135.75,135.67,4.0]
[1641856742681,5.816,135.75,135.72,2.75286839]
[1641856742882,5.816,135.75,135.72,11.71786839]
[1641856743485,8.223,135.79,135.72,11.71786839]
[1641856743686,4.0,135.82,135.72,11.71786839]
[1641856744284,4.0,135.82,135.72,15.71786839]
[1641856744485,61.88962165,135.84,135.73,4.0]
[1641856744687,56.00003621,135.84,135.74,4.0]
[1641856744886,56.00003621,135.84,135.73,77.2078]
[1641856745086,56.00003621,135.84,135.74,4.0]
[1641856745286,56.00003621,135.84,135.75,27.66479]
[1641856745689,56.00003621,135.84,135.74,4.0]
[1641856745890,56.00003621,135.84,135.72,15.71786839]
[1641856746088,45.39406081,135.84,135.72,25.86238419]
[1641856746289,4.0,135.84,135.72,23.1095158]
[1641856746689,74.4702,135.83,135.72,19.1095158]
[1641856746889,74.4702,135.83,135.72,8.965]
[1641856747088,82.3682,135.83,135.71,27.66479]
[1641856747289,27.66479,135.8,135.71,27.66479]
[1641856748491,149.4031,135.83,135.71,27.66479]
[1641856748894,149.4031,135.83,135.71,31.66479]
[1641856749091,153.4031,135.83,135.71,27.66479]
[1641856749291,27.66479,135.82,135.71,27.66479]
[1641856750590,38.26949412,135.82,135.73,2.75241767]
[1641856751392,4.17175703,135.79,135.73,2.75241767]
[1641856753099,8.17175703,135.79,135.73,2.75241767]
[1641856753299,27.66479,135.78,135.73,2.75241767]
[1641856753501,4.0,135.76,135.66,1.841]
[1641856753703,4.0,135.73,135.65,41.39406081]
[1641856754003,7.431,135.73,135.65,41.39406081]
[1641856754403,7.431,135.73,135.63,4.0]
[1641856754603,21.68451461,135.77,135.67,4.0]
[1641856754604,10.61331342,135.77,135.67,4.0]
[1641856754805,10.61331342,135.77,135.67,7.575]
[1641856755402,5.89142824,135.8,135.69,27.66479]
[1641856755403,38.27810342,135.78,135.69,27.66479]
[1641856755603,42.44999778,135.78,135.69,27.66479]
[1641856756203,14.78520778,135.78,135.72,4.0]
[1641856756403,4.17189436,135.78,135.72,4.0]
[1641856757405,4.17189436,135.78,135.75,27.66479]
[1641856757605,4.17189436,135.78,135.75,34.08479]
[1641856759408,4.17189436,135.78,135.7,1.841]
[1641856759609,4.0,135.79,135.68,43.23506081]
[1641856759810,4.17218965,135.77,135.68,41.39406081]
[1641856760409,4.17218965,135.77,135.68,45.39406081]
[1641856760611,4.17218965,135.77,135.68,4.0]
[1641856761414,4.17218965,135.77,135.72,27.66479]
[1641856763816,4.17174279,135.78,135.72,27.66479]
[1641856764415,4.17174279,135.78,135.72,31.66479]
[1641856765114,4.17174279,135.78,135.72,27.66479]
[1641856765315,4.17174279,135.78,135.73,4.0]
[1641856766518,4.17174279,135.78,135.73,9.8937267]
[1641856766720,4.17174279,135.78,135.73,20.05768979]
[1641856767522,31.66479,135.84,135.73,20.05768979]
[1641856767722,4.17131124,135.77,135.75,27.66479]
[1641856767924,4.17131124,135.77,135.75,34.31979]
[1641856769428,4.17131124,135.77,135.76,4.0]
[1641856769629,19.58279539,135.84,135.76,4.0]
[1641856770231,19.58279539,135.84,135.75,34.31979]
[1641856770431,4.0,135.84,135.75,34.31979]
[1641856771033,4.0,135.83,135.75,34.31979]
[1641856771433,4.0,135.83,135.75,27.66479]
[1641856771734,4.0,135.82,135.74,2.17350615]
[1641856771933,4.0,135.81,135.74,2.17350615]
[1641856772134,4.0,135.82,135.74,2.17350615]
[1641856772533,4.0,135.83,135.74,2.17350615]
[1641856772933,15.58279539,135.82,135.74,2.17350615]
[1641856773534,15.58279539,135.81,135.74,2.17350615]
[1641856773736,43.24758539,135.81,135.72,27.66479]
[1641856774535,43.24758539,135.81,135.76,3.04923357]
[1641856775435,15.58279539,135.8,135.76,3.04923357]
[1641856776236,43.24758539,135.81,135.76,3.04923357]
[1641856776939,27.66479,135.81,135.76,3.04923357]
[1641856777740,15.58279539,135.82,135.76,3.04923357]
[1641856778338,4.17134829,135.8,135.75,35.18679]
[1641856779039,4.17134829,135.8,135.75,39.18679]
[1641856779340,4.17134829,135.8,135.77,4.0]
[1641856779641,4.17134829,135.8,135.79,4.0]
[1641856779839,4.17134829,135.8,135.79,34.29279]
[1641856780039,4.829e-05,135.8,135.79,34.29279]
[1641856781841,27.66479,135.85,135.79,34.29279]
[1641856782042,31.66479,135.85,135.79,34.29279]
[1641856782243,27.66479,135.85,135.79,34.29279]
[1641856782642,2.68365832,135.84,135.79,34.29279]
[1641856783342,2.68365832,135.84,135.79,6.628]
[1641856783541,18.26645371,135.84,135.79,6.628]
[1641856784145,4.0,135.82,135.76,3.05055889]
[1641856784443,7.698,135.82,135.76,3.05055889]
[1641856785344,2.68365832,135.81,135.76,3.05055889]
[1641856785945,7.698,135.82,135.76,3.05055889]
[1641856786144,7.698,135.82,135.77,2.51102681]
[1641856786746,7.698,135.82,135.8,3.92602044]
[1641856788748,4.0,135.81,135.74,15.58760949]
[1641856788949,4.0,135.79,135.74,15.58760949]
[1641856789148,4.0,135.78,135.74,15.58760949]
[1641856789348,4.0,135.77,135.73,18.09828744]
[1641856789549,4.0,135.78,135.73,18.09828744]
[1641856789748,27.66479,135.77,135.73,18.09828744]
[1641856790449,27.66479,135.77,135.69,15.58760949]
[1641856791651,27.66479,135.77,135.7,15.58760949]
[1641856791849,27.66479,135.77,135.7,43.25239949]
[1641856792650,27.66479,135.77,135.71,2.51067795]
[1641856793050,31.66479,135.79,135.71,2.51067795]
[1641856793651,27.66479,135.79,135.71,2.51067795]
[1641856794352,23.28079539,135.82,135.75,4.0]
[1641856794551,23.28079539,135.82,135.76,4.0]
[1641856794956,23.28079539,135.82,135.75,7.184]
[1641856795152,7.698,135.82,135.77,2.51067795]
[1641856795752,15.58279539,135.85,135.77,30.17546795]
[1641856795952,15.58279539,135.85,135.77,27.66479]
[1641856796753,18.26811517,135.85,135.78,2.51067795]
[1641856797554,2.68531978,135.85,135.78,2.51067795]
[1641856800756,6.68531978,135.85,135.78,2.51067795]
[1641856801255,6.68531978,135.85,135.75,22.77160949]
[1641856801456,6.68531978,135.85,135.75,7.184]
[1641856801457,76.22061978,135.84,135.75,7.184]
[1641856801756,76.22061978,135.84,135.74,4.0]
[1641856801957,76.22061978,135.84,135.76,27.66479]
[1641856802157,2.68531978,135.83,135.76,37.59838669]
[1641856802958,2.68531978,135.83,135.77,2.50859669]
[1641856803561,15.58279539,135.85,135.82,4.0]
[1641856803760,15.58279539,135.88,135.82,10.485]
[1641856803960,15.58279539,135.88,135.86,27.66479]
[1641856804160,15.58279539,135.88,135.86,34.83579]
[1641856804461,15.58279539,135.88,135.86,7.171]
[1641856805061,15.58279539,135.88,135.77,17.42660949]
[1641856805262,4.0,135.87,135.79,15.58760949]
[1641856805460,4.0,135.85,135.79,15.58760949]
[1641856805660,4.0,135.84,135.79,15.58760949]